[Event "Open Nuevo Centro. Jornada 2"]
[Site "Chess.com"]
[Date "2020.06.26"]
[Round "4"]
[White "Birnoveanu, Petru"]
[Black "García Giménez, Santiago"]
[Result "0-1"]
[WhiteElo "1690"]
[BlackElo "1956"]
[TimeControl "180+2"]
[EndTime "11:12:56 PDT"]
[Termination "Victoria de Somaelfideitos por tiempo"]

1. e4 {[%clk 0:03:01.9]} 1... e5 {[%clk 0:03:00]} 2. Bc4 {[%clk 0:03:01.3]} 2...
Bc5 {[%clk 0:02:59.8]} 3. Nf3 {[%clk 0:03:01.2]} 3... Nc6 {[%clk 0:02:59.9]} 4.
O-O {[%clk 0:03:02]} 4... Nf6 {[%clk 0:02:59.7]} 5. d4 {[%clk 0:03:02.8]} 5...
Bxd4 {[%clk 0:03:01.2]} 6. Nxd4 {[%clk 0:03:03.3]} 6... Nxd4 {[%clk 0:03:02.8]}
7. f4 {[%clk 0:03:04.1]} 7... d6 {[%clk 0:03:04.4]} 8. fxe5 {[%clk 0:03:04.2]}
8... dxe5 {[%clk 0:03:06.3]} 9. Bg5 {[%clk 0:03:03.6]} 9... Be6 {[%clk 0:03:06]}
10. Nd2 {[%clk 0:03:00.2]} 10... h6 {[%clk 0:03:04.6]} 11. Bxf6 {[%clk
0:03:00.3]} 11... gxf6 {[%clk 0:03:06.5]} 12. c3 {[%clk 0:02:59.5]} 12... Nc6
{[%clk 0:03:05.9]} 13. Bxe6 {[%clk 0:02:57.9]} 13... fxe6 {[%clk 0:03:04.8]} 14.
Qh5+ {[%clk 0:02:54.5]} 14... Ke7 {[%clk 0:03:04]} 15. Rad1 {[%clk 0:02:49.2]}
15... Qg8 {[%clk 0:03:02.7]} 16. Rf2 {[%clk 0:02:40]} 16... Qg5 {[%clk
0:03:02.2]} 17. Qh3 {[%clk 0:02:38.3]} 17... Rad8 {[%clk 0:03:01.8]} 18. Qf3
{[%clk 0:02:19]} 18... Rhg8 {[%clk 0:03:01.1]} 19. Nf1 {[%clk 0:02:06.5]} 19...
h5 {[%clk 0:02:54.1]} 20. Rxd8 {[%clk 0:02:05.8]} 20... Rxd8 {[%clk 0:02:56]}
21. h3 {[%clk 0:01:56]} 21... b6 {[%clk 0:02:23.5]} 22. Ng3 {[%clk 0:01:40.3]}
22... Rh8 {[%clk 0:02:09.4]} 23. Nf1 {[%clk 0:01:24.5]} 23... Rd8 {[%clk
0:01:27]} 24. Qe2 {[%clk 0:01:20.4]} 24... Nb8 {[%clk 0:01:00.5]} 25. Qc4 {[%clk
0:00:54.6]} 25... c6 {[%clk 0:00:57.6]} 26. Qa4 {[%clk 0:00:50.9]} 26... Rd7
{[%clk 0:00:58]} 27. Qc2 {[%clk 0:00:29.8]} 27... b5 {[%clk 0:00:48.6]} 28. b3
{[%clk 0:00:29.7]} 28... Na6 {[%clk 0:00:48.1]} 29. b4 {[%clk 0:00:27.9]} 29...
Kf7 {[%clk 0:00:39.4]} 30. a4 {[%clk 0:00:25.8]} 30... Nc7 {[%clk 0:00:36.2]}
31. a5 {[%clk 0:00:16.8]} 31... Na6 {[%clk 0:00:26]} 32. Qe2 {[%clk 0:00:16.4]}
32... Kg6 {[%clk 0:00:21.5]} 33. Nh2 {[%clk 0:00:13.4]} 33... Qc1+ {[%clk
0:00:20.7]} 34. Nf1 {[%clk 0:00:07.7]} 34... Qxc3 {[%clk 0:00:21.1]} 0

[Event "Open Nuevo Centro. Jornada 2"]
[Site "Chess.com"]
[Date "2020.06.26"]
[Round "4"]
[White "Martínez Carvajal, Juan Francisco"]
[Black "Mora Bort, Miguel Ángel"]
[Result "1-0"]
[WhiteElo "1753"]
[BlackElo "1151"]
[TimeControl "180+2"]
[EndTime "11:12:59 PDT"]
[Termination "Victoria de JuanFcoMtnezCarvajal por abandono"]

1. Nf3 {[%clk 0:03:01.9]} 1... d5 {[%clk 0:02:59.4]} 2. c4 {[%clk 0:03:00.8]}
2... Nf6 {[%clk 0:02:56.3]} 3. cxd5 {[%clk 0:02:57.5]} 3... Nxd5 {[%clk
0:02:55.7]} 4. e4 {[%clk 0:02:57.8]} 4... Nf6 {[%clk 0:02:53.6]} 5. Nc3 {[%clk
0:02:56.1]} 5... Nc6 {[%clk 0:02:52.7]} 6. d4 {[%clk 0:02:52.6]} 6... Bg4 {[%clk
0:02:49.1]} 7. Be3 {[%clk 0:02:42.8]} 7... e6 {[%clk 0:02:42.8]} 8. Be2 {[%clk
0:02:36.5]} 8... Bb4 {[%clk 0:02:42.2]} 9. d5 {[%clk 0:02:20.2]} 9... exd5
{[%clk 0:02:38.5]} 10. exd5 {[%clk 0:02:12.9]} 10... Bxc3+ {[%clk 0:02:29.2]}
11. bxc3 {[%clk 0:02:10.3]} 11... Qxd5 {[%clk 0:02:24.6]} 12. Qa4 {[%clk
0:01:57.4]} 12... O-O {[%clk 0:02:18.5]} 13. Rd1 {[%clk 0:01:54.2]} 13... Qa5
{[%clk 0:02:14.1]} 14. Qxa5 {[%clk 0:01:24.6]} 14... Nxa5 {[%clk 0:02:14.2]} 15.
Ne5 {[%clk 0:01:15]} 15... Bxe2 {[%clk 0:02:12.9]} 16. Kxe2 {[%clk 0:01:16.1]}
16... Rfe8 {[%clk 0:02:05.1]} 17. Nd7 {[%clk 0:01:12]} 17... Nxd7 {[%clk
0:02:00.7]} 18. Rxd7 {[%clk 0:01:12.2]} 18... Rec8 {[%clk 0:01:52]} 19. Rhd1
{[%clk 0:01:06.2]} 19... h6 {[%clk 0:01:46.1]} 20. Re7 {[%clk 0:00:57.5]} 20...
Nc6 {[%clk 0:01:46.7]} 21. Red7 {[%clk 0:00:52.4]} 21... Ne5 {[%clk 0:01:37.7]}
22. Re7 {[%clk 0:00:47.8]} 22... Nc6 {[%clk 0:01:37.7]} 23. Re4 {[%clk 0:00:41]}
23... Re8 {[%clk 0:01:32.3]} 24. Rc4 {[%clk 0:00:37.7]} 24... Rad8 {[%clk
0:01:21.2]} 25. Rb1 {[%clk 0:00:25.3]} 25... Na5 {[%clk 0:01:18.1]} 26. Rxc7
{[%clk 0:00:22.3]} 26... Nc6 {[%clk 0:00:57]} 27. Rcxb7 {[%clk 0:00:18.6]} 27...
Ne5 {[%clk 0:00:57.5]} 28. Kf1 {[%clk 0:00:16.8]} 28... Ng4 {[%clk 0:00:53.3]}
29. Bxa7 {[%clk 0:00:16.7]} 29... Nxh2+ {[%clk 0:00:52.2]} 30. Kg1 {[%clk
0:00:17.8]} 30... Ng4 {[%clk 0:00:51.5]} 31. Bd4 {[%clk 0:00:18]} 31... Re2
{[%clk 0:00:47.1]} 32. a4 {[%clk 0:00:17.6]} 32... Rde8 {[%clk 0:00:38.7]} 33.
g3 {[%clk 0:00:13.3]} 33... Re1+ {[%clk 0:00:27.2]} 34. Rxe1 {[%clk 0:00:13.6]}
34... Rxe1+ {[%clk 0:00:27.5]} 35. Kg2 {[%clk 0:00:14.9]} 35... Re2 {[%clk
0:00:25.5]} 36. Kf3 {[%clk 0:00:15.8]} 1

[Event "Open Nuevo Centro. Jornada 2"]
[Site "Chess.com"]
[Date "2020.06.26"]
[Round "4"]
[White "Macias Pino, Diego"]
[Black "Randazzo, Adrián"]
[Result "0-1"]
[WhiteElo "2196"]
[BlackElo "2472"]
[TimeControl "180+2"]
[EndTime "11:13:11 PDT"]
[Termination "Victoria de Nikithebest por abandono"]

1. e4 {[%clk 0:03:01.9]} 1... c5 {[%clk 0:03:00.7]} 2. Nc3 {[%clk 0:03:02.8]}
2... a6 {[%clk 0:03:01.3]} 3. g3 {[%clk 0:03:03.7]} 3... b5 {[%clk 0:03:01.7]}
4. Bg2 {[%clk 0:02:48.8]} 4... Bb7 {[%clk 0:03:02.3]} 5. d3 {[%clk 0:02:49.9]}
5... b4 {[%clk 0:03:02.7]} 6. Nce2 {[%clk 0:02:50.1]} 6... e6 {[%clk 0:03:03.4]}
7. Nh3 {[%clk 0:02:47.5]} 7... d5 {[%clk 0:03:01.3]} 8. O-O {[%clk 0:02:47.4]}
8... Nf6 {[%clk 0:02:57]} 9. e5 {[%clk 0:02:47.2]} 9... Ng8 {[%clk 0:02:46.6]}
10. d4 {[%clk 0:02:46]} 10... h5 {[%clk 0:02:45.8]} 11. f4 {[%clk 0:02:42.3]}
11... g6 {[%clk 0:02:46.1]} 12. c3 {[%clk 0:02:40.4]} 12... Nc6 {[%clk
0:02:41.4]} 13. Be3 {[%clk 0:02:40.4]} 13... Qb6 {[%clk 0:02:36.7]} 14. Qd2
{[%clk 0:02:32.3]} 14... Nh6 {[%clk 0:02:35.3]} 15. Nf2 {[%clk 0:02:28.9]} 15...
Nf5 {[%clk 0:02:36]} 16. Nd3 {[%clk 0:02:16.7]} 16... c4 {[%clk 0:02:33.6]} 17.
Ne1 {[%clk 0:02:08.1]} 17... a5 {[%clk 0:02:35.2]} 18. Bf2 {[%clk 0:02:06]}
18... Be7 {[%clk 0:02:35.5]} 19. Nf3 {[%clk 0:02:04.5]} 19... h4 {[%clk
0:02:29]} 20. g4 {[%clk 0:02:04.7]} 20... h3 {[%clk 0:02:28.7]} 21. gxf5 {[%clk
0:02:02.4]} 21... hxg2 {[%clk 0:02:27.9]} 22. Kxg2 {[%clk 0:02:03.1]} 22... gxf5
{[%clk 0:02:26.7]} 23. Ng3 {[%clk 0:01:59.4]} 23... Kd7 {[%clk 0:02:24.3]} 24.
a3 {[%clk 0:01:50]} 24... Rag8 {[%clk 0:02:22.4]} 25. Rh1 {[%clk 0:01:46.7]}
25... b3 {[%clk 0:02:18.5]} 26. Rag1 {[%clk 0:01:43.5]} 26... Qd8 {[%clk
0:02:15.6]} 27. Kf1 {[%clk 0:01:42.7]} 27... Rh3 {[%clk 0:02:14.2]} 28. Ke2
{[%clk 0:01:31.1]} 28... Rgh8 {[%clk 0:02:15.5]} 29. Nf1 {[%clk 0:01:30.9]}
29... Qf8 {[%clk 0:02:11.1]} 30. Rg3 {[%clk 0:01:28.8]} 30... R3h5 {[%clk
0:02:03.9]} 31. Rhg1 {[%clk 0:01:27.5]} 31... Kc7 {[%clk 0:01:56.9]} 32. R3g2
{[%clk 0:01:17.2]} 32... Bc8 {[%clk 0:01:58.1]} 33. Ng3 {[%clk 0:01:11.2]} 33...
Rh3 {[%clk 0:01:56.1]} 34. Nf1 {[%clk 0:01:10.6]} 34... Bd7 {[%clk 0:01:56.3]}
35. Ng5 {[%clk 0:01:05.7]} 35... Rd3 {[%clk 0:01:51.2]} 36. Qc1 {[%clk
0:00:56.1]} 36... f6 {[%clk 0:01:48]} 37. Nf3 {[%clk 0:00:55.1]} 37... Be8
{[%clk 0:01:43]} 38. Ng3 {[%clk 0:00:52.4]} 38... Qh6 {[%clk 0:01:41.9]} 39. Ne1
{[%clk 0:00:51.7]} 39... Bh5+ {[%clk 0:01:40.5]} 40. Kf1 {[%clk 0:00:51.3]}
40... Rd1 {[%clk 0:01:39.1]} 41. Qe3 {[%clk 0:00:48.3]} 41... Bg4 {[%clk
0:01:40.4]} 42. exf6 {[%clk 0:00:28.2]} 42... Qxf6 {[%clk 0:01:34]} 43. Nh1
{[%clk 0:00:25.1]} 43... Bxa3 {[%clk 0:01:32.6]} 44. Rxg4 {[%clk 0:00:26.2]}
44... fxg4 {[%clk 0:01:30.8]} 45. Qe2 {[%clk 0:00:22.3]} 45... Ra1 {[%clk
0:01:19.3]} 46. bxa3 {[%clk 0:00:23.3]} 46... Ra2 {[%clk 0:01:14.2]} 47. Qd1
{[%clk 0:00:23.5]} 47... Rxh2 {[%clk 0:01:08.1]} 48. Bg3 {[%clk 0:00:22.8]}
48... Rhd2 {[%clk 0:01:06.6]} 49. Qxg4 {[%clk 0:00:22.1]} 49... b2 {[%clk
0:01:05.6]} 50. f5+ {[%clk 0:00:22.2]} 50... Kb6 {[%clk 0:00:58.9]} 51. Qf4
{[%clk 0:00:23.3]} 51... Qxf5 {[%clk 0:00:57.6]} 0

[Event "Open Nuevo Centro. Jornada 2"]
[Site "Chess.com"]
[Date "2020.06.26"]
[Round "4"]
[White "Ulla Centelles, Llorens"]
[Black "URSARIU, NIKOLAS VICTOR"]
[Result "1-0"]
[WhiteElo "1580"]
[BlackElo "1053"]
[TimeControl "180+2"]
[EndTime "11:13:23 PDT"]
[Termination "Victoria de kratos82 por tiempo"]

1. e4 {[%clk 0:03:01.9]} 1... e5 {[%clk 0:03:00]} 2. f4 {[%clk 0:03:01.1]} 2...
Nc6 {[%clk 0:02:58.2]} 3. Nf3 {[%clk 0:02:58.5]} 3... exf4 {[%clk 0:02:57.3]} 4.
d4 {[%clk 0:02:56.1]} 4... Bb4+ {[%clk 0:02:51]} 5. c3 {[%clk 0:02:56.1]} 5...
Ba5 {[%clk 0:02:51.5]} 6. Bxf4 {[%clk 0:02:57.1]} 6... Nf6 {[%clk 0:02:48.7]} 7.
Be2 {[%clk 0:02:57.8]} 7... O-O {[%clk 0:02:48.2]} 8. Nbd2 {[%clk 0:02:57.5]}
8... d6 {[%clk 0:02:47]} 9. O-O {[%clk 0:02:57.1]} 9... Be6 {[%clk 0:02:44]} 10.
d5 {[%clk 0:02:57.5]} 10... Nh5 {[%clk 0:02:22.2]} 11. Be3 {[%clk 0:02:53.4]}
11... Bg4 {[%clk 0:02:14.8]} 12. dxc6 {[%clk 0:02:50.3]} 12... bxc6 {[%clk
0:02:12.6]} 13. b4 {[%clk 0:02:06.9]} 13... Bb6 {[%clk 0:02:11.6]} 14. Bxb6
{[%clk 0:02:06.7]} 14... cxb6 {[%clk 0:02:10.3]} 15. a4 {[%clk 0:02:07.3]} 15...
Qf6 {[%clk 0:02:04.7]} 16. Nc4 {[%clk 0:01:35.1]} 16... Rfd8 {[%clk 0:01:57.7]}
17. Qb3 {[%clk 0:01:34.6]} 17... Bxf3 {[%clk 0:01:56.1]} 18. Bxf3 {[%clk
0:01:33.5]} 18... Nf4 {[%clk 0:01:55]} 19. Rae1 {[%clk 0:01:28.5]} 19... d5
{[%clk 0:01:43.5]} 20. exd5 {[%clk 0:01:00]} 20... cxd5 {[%clk 0:01:45.4]} 21.
Nd2 {[%clk 0:00:57.8]} 21... Nd3 {[%clk 0:01:41.7]} 22. Re3 {[%clk 0:00:53.5]}
22... Qf5 {[%clk 0:01:26.6]} 23. Be2 {[%clk 0:00:42]} 23... Nf4 {[%clk
0:01:21.6]} 24. Ref3 {[%clk 0:00:31.1]} 24... Nxe2+ {[%clk 0:01:12.7]} 25. Kh1
{[%clk 0:00:15]} 25... Qe6 {[%clk 0:01:02.1]} 26. Qc2 {[%clk 0:00:10.8]} 26...
d4 {[%clk 0:00:44.5]} 27. cxd4 {[%clk 0:00:10.7]} 27... Nxd4 {[%clk 0:00:43.3]}
28. Qc3 {[%clk 0:00:09.7]} 28... Nxf3 {[%clk 0:00:41]} 29. Nxf3 {[%clk
0:00:09.9]} 29... Qf6 {[%clk 0:00:27.9]} 30. Qc7 {[%clk 0:00:08.6]} 30... Rdc8
{[%clk 0:00:22.1]} 31. Qb7 {[%clk 0:00:09]} 31... Rcb8 {[%clk 0:00:21]} 32. Qc7
{[%clk 0:00:09.5]} 32... Qb2 {[%clk 0:00:20.4]} 33. Ng5 {[%clk 0:00:08.7]} 33...
Qa2 {[%clk 0:00:16.7]} 34. Qf4 {[%clk 0:00:07.9]} 34... Rb7 {[%clk 0:00:14.2]}
35. Qf3 {[%clk 0:00:07.6]} 35... Rbb8 {[%clk 0:00:13.7]} 36. Nxf7 {[%clk
0:00:06.2]} 36... Qxa4 {[%clk 0:00:11.4]} 37. Nd6 {[%clk 0:00:07.4]} 37... Rf8
{[%clk 0:00:09.2]} 38. Qd5+ {[%clk 0:00:07.5]} 1

[Event "Open Nuevo Centro. Jornada 2"]
[Site "Chess.com"]
[Date "2020.06.26"]
[Round "4"]
[White "Casado Andreu, David"]
[Black "Gómez Alonso, Óscar"]
[Result "0-1"]
[WhiteElo "1638"]
[BlackElo "1865"]
[TimeControl "180+2"]
[EndTime "11:13:29 PDT"]
[Termination "Victoria de osgo78 por jaque mate"]

1. e4 {[%clk 0:03:01.9]} 1... c5 {[%clk 0:03:00.8]} 2. Nf3 {[%clk 0:03:02.5]}
2... e6 {[%clk 0:03:01.4]} 3. d4 {[%clk 0:03:02.1]} 3... cxd4 {[%clk 0:03:02.9]}
4. Nxd4 {[%clk 0:03:04]} 4... Nf6 {[%clk 0:03:04.4]} 5. Nc3 {[%clk 0:03:04.1]}
5... Nc6 {[%clk 0:03:05]} 6. Be2 {[%clk 0:02:41.5]} 6... a6 {[%clk 0:03:02.8]}
7. O-O {[%clk 0:02:29.4]} 7... Bb4 {[%clk 0:03:03.2]} 8. Be3 {[%clk 0:02:10.1]}
8... O-O {[%clk 0:03:00.2]} 9. Na4 {[%clk 0:02:01.9]} 9... d5 {[%clk 0:02:55.3]}
10. Nxc6 {[%clk 0:01:59.8]} 10... bxc6 {[%clk 0:02:55.8]} 11. exd5 {[%clk
0:01:25.4]} 11... cxd5 {[%clk 0:02:52.6]} 12. a3 {[%clk 0:01:23.7]} 12... Be7
{[%clk 0:02:48.4]} 13. Nb6 {[%clk 0:01:08.2]} 13... Rb8 {[%clk 0:02:43.5]} 14.
Nxc8 {[%clk 0:01:09.1]} 14... Qxc8 {[%clk 0:02:42.7]} 15. Rb1 {[%clk 0:01:09.7]}
15... Rd8 {[%clk 0:02:29.8]} 16. Bf4 {[%clk 0:01:10.3]} 16... Rb6 {[%clk
0:02:24]} 17. Qd4 {[%clk 0:00:58.9]} 17... Qc5 {[%clk 0:02:01.5]} 18. Qd2 {[%clk
0:00:53]} 18... Ne4 {[%clk 0:01:52.2]} 19. Qc1 {[%clk 0:00:44.6]} 19... Bf6
{[%clk 0:01:47.3]} 20. c3 {[%clk 0:00:43.8]} 20... Qc6 {[%clk 0:01:30.5]} 21.
Rd1 {[%clk 0:00:36.6]} 21... Rdb8 {[%clk 0:01:28.2]} 22. Be3 {[%clk 0:00:35.5]}
22... R6b7 {[%clk 0:01:28.8]} 23. Bd3 {[%clk 0:00:31.2]} 23... Nxc3 {[%clk
0:01:09.5]} 24. bxc3 {[%clk 0:00:25.8]} 24... Rxb1 {[%clk 0:01:10.1]} 25. Bxb1
{[%clk 0:00:25.8]} 25... g6 {[%clk 0:01:08.4]} 26. Bd4 {[%clk 0:00:23.9]} 26...
e5 {[%clk 0:01:04]} 27. Be3 {[%clk 0:00:21.3]} 27... Rc8 {[%clk 0:01:01]} 28.
Bd2 {[%clk 0:00:21.4]} 28... Qc5 {[%clk 0:00:55.8]} 29. h3 {[%clk 0:00:21.1]}
29... Qb5 {[%clk 0:00:53.6]} 30. Ba2 {[%clk 0:00:21]} 30... d4 {[%clk
0:00:53.5]} 31. c4 {[%clk 0:00:21.3]} 31... Qc6 {[%clk 0:00:53.4]} 32. Bg5
{[%clk 0:00:17.4]} 32... Bg7 {[%clk 0:00:54]} 33. Qd2 {[%clk 0:00:17.1]} 33...
h6 {[%clk 0:00:50.4]} 34. Bh4 {[%clk 0:00:17]} 34... e4 {[%clk 0:00:51.5]} 35.
Bg3 {[%clk 0:00:17.3]} 35... Re8 {[%clk 0:00:48.3]} 36. Qb4 {[%clk 0:00:17.8]}
36... e3 {[%clk 0:00:47.6]} 37. fxe3 {[%clk 0:00:18.7]} 37... dxe3 {[%clk
0:00:47.2]} 38. Re1 {[%clk 0:00:20.1]} 38... Qe4 {[%clk 0:00:45.6]} 39. Bb1
{[%clk 0:00:20.3]} 39... Qd4 {[%clk 0:00:38.7]} 40. Re2 {[%clk 0:00:13.2]} 40...
h5 {[%clk 0:00:31.3]} 41. a4 {[%clk 0:00:10.8]} 41... h4 {[%clk 0:00:31.4]} 42.
Bh2 {[%clk 0:00:11.2]} 42... Kh7 {[%clk 0:00:23.1]} 43. Qa3 {[%clk 0:00:11.8]}
43... Qd1+ {[%clk 0:00:20.3]} 44. Re1 {[%clk 0:00:12.7]} 44... Qxe1# {[%clk
0:00:19.9]} 0

[Event "Open Nuevo Centro. Jornada 2"]
[Site "Chess.com"]
[Date "2020.06.26"]
[Round "4"]
[White "Crevillen Abad, Clemente"]
[Black "Aymerich Rosell, Pablo"]
[Result "1/2-1/2"]
[WhiteElo "1761"]
[BlackElo "1977"]
[TimeControl "180+2"]
[EndTime "11:13:45 PDT"]
[Termination "Tablas por repeticiÃ³n de movimientos"]

1. e4 {[%clk 0:03:01.9]} 1... c5 {[%clk 0:02:54.1]} 2. Nc3 {[%clk 0:02:57.2]}
2... Nc6 {[%clk 0:02:54.4]} 3. f4 {[%clk 0:02:57.6]} 3... g6 {[%clk 0:02:54.3]}
4. Bc4 {[%clk 0:02:57]} 4... Bg7 {[%clk 0:02:54]} 5. Nf3 {[%clk 0:02:57]} 5...
e6 {[%clk 0:02:53.1]} 6. O-O {[%clk 0:02:47]} 6... Nge7 {[%clk 0:02:53.5]} 7. e5
{[%clk 0:02:44.8]} 7... d5 {[%clk 0:02:48.2]} 8. exd6 {[%clk 0:02:44.7]} 8...
Qxd6 {[%clk 0:02:46.7]} 9. d3 {[%clk 0:02:44.8]} 9... Bxc3 {[%clk 0:02:42.1]}
10. bxc3 {[%clk 0:02:43.8]} 10... O-O {[%clk 0:02:42]} 11. Qe1 {[%clk
0:02:38.8]} 11... Nf5 {[%clk 0:02:37.6]} 12. g4 {[%clk 0:02:32.7]} 12... Nfe7
{[%clk 0:02:36.1]} 13. Ne5 {[%clk 0:02:25.2]} 13... Na5 {[%clk 0:02:31.2]} 14.
Bb3 {[%clk 0:02:12]} 14... Nxb3 {[%clk 0:02:26.6]} 15. axb3 {[%clk 0:02:11.8]}
15... b6 {[%clk 0:02:27]} 16. Qe4 {[%clk 0:02:00.6]} 16... Qd5 {[%clk
0:02:21.5]} 17. Qxd5 {[%clk 0:01:54.7]} 17... Nxd5 {[%clk 0:02:11.7]} 18. c4
{[%clk 0:01:38.7]} 18... Nb4 {[%clk 0:02:01.4]} 19. Rf2 {[%clk 0:01:35.1]} 19...
f6 {[%clk 0:01:57.1]} 20. Nf3 {[%clk 0:01:33.5]} 20... Bb7 {[%clk 0:01:55.5]}
21. Kg2 {[%clk 0:01:18.6]} 21... a5 {[%clk 0:01:47.7]} 22. Ba3 {[%clk
0:01:16.5]} 22... e5 {[%clk 0:01:39.8]} 23. Kg3 {[%clk 0:01:15.1]} 23... exf4+
{[%clk 0:01:39.3]} 24. Kxf4 {[%clk 0:01:15.2]} 24... f5 {[%clk 0:01:39.2]} 25.
g5 {[%clk 0:01:14.5]} 25... Nc6 {[%clk 0:01:35.3]} 26. Bb2 {[%clk 0:01:10.4]}
26... Rae8 {[%clk 0:01:35.3]} 27. Re1 {[%clk 0:01:09.2]} 27... Nb4 {[%clk
0:01:27.6]} 28. Rxe8 {[%clk 0:00:48.7]} 28... Rxe8 {[%clk 0:01:27.3]} 29. Ne5
{[%clk 0:00:48.8]} 29... Re6 {[%clk 0:01:11]} 30. Bc3 {[%clk 0:00:46.2]} 30...
Nc6 {[%clk 0:01:04.2]} 31. Re2 {[%clk 0:00:34.1]} 31... Nxe5 {[%clk 0:00:44.3]}
32. Rxe5 {[%clk 0:00:34.1]} 32... Kf7 {[%clk 0:00:42.4]} 33. Rxe6 {[%clk
0:00:25.2]} 33... Kxe6 {[%clk 0:00:43.2]} 34. Be5 {[%clk 0:00:21.5]} 34... Kd7
{[%clk 0:00:26]} 35. c3 {[%clk 0:00:20.5]} 35... Bc6 {[%clk 0:00:26.1]} 36. d4
{[%clk 0:00:20.8]} 36... a4 {[%clk 0:00:25.9]} 37. bxa4 {[%clk 0:00:21.1]} 37...
Bxa4 {[%clk 0:00:26.9]} 38. Ke3 {[%clk 0:00:17.2]} 38... Bb3 {[%clk 0:00:24.8]}
39. Kd3 {[%clk 0:00:17.1]} 39... Ke6 {[%clk 0:00:25.3]} 40. Bf4 {[%clk
0:00:16.9]} 40... Kd7 {[%clk 0:00:24.5]} 41. h4 {[%clk 0:00:14.4]} 41... Kc6
{[%clk 0:00:25.2]} 42. Be3 {[%clk 0:00:14.7]} 42... b5 {[%clk 0:00:25.2]} 43.
dxc5 {[%clk 0:00:14.5]} 43... Bxc4+ {[%clk 0:00:24.5]} 44. Kd4 {[%clk
0:00:14.9]} 44... Bf1 {[%clk 0:00:24.7]} 45. Ke5 {[%clk 0:00:15.5]} 45... Be2
{[%clk 0:00:22.5]} 46. Kf6 {[%clk 0:00:15.9]} 46... Bh5 {[%clk 0:00:22.4]} 47.
Ke5 {[%clk 0:00:15.3]} 47... Bg4 {[%clk 0:00:22.3]} 48. Bd4 {[%clk 0:00:16.4]}
48... Bh5 {[%clk 0:00:22.9]} 49. Be3 {[%clk 0:00:17.7]} 49... Bg4 {[%clk
0:00:23.7]} 50. Bd4 {[%clk 0:00:19]} 50... Bh5 {[%clk 0:00:24.8]} 51. Be3 {[%clk
0:00:19.5]} 1/2-1

[Event "Open Nuevo Centro. Jornada 2"]
[Site "Chess.com"]
[Date "2020.06.26"]
[Round "4"]
[White "Valverde Caballero, Rafael"]
[Black "Salvador Buiza, Victor"]
[Result "0-1"]
[WhiteElo "1862"]
[BlackElo "1754"]
[TimeControl "180+2"]
[EndTime "11:14:10 PDT"]
[Termination "Victoria de TERROROSCURO666 por tiempo"]

1. c4 {[%clk 0:03:01.9]} 1... e5 {[%clk 0:03:00.6]} 2. Nc3 {[%clk 0:03:01.7]}
2... Nc6 {[%clk 0:03:01.9]} 3. Nf3 {[%clk 0:03:03]} 3... d6 {[%clk 0:02:59.2]}
4. e4 {[%clk 0:02:59.4]} 4... g6 {[%clk 0:02:59.4]} 5. d4 {[%clk 0:03:00.7]}
5... exd4 {[%clk 0:02:58.8]} 6. Nxd4 {[%clk 0:03:02.6]} 6... Bg7 {[%clk
0:02:59.7]} 7. Be3 {[%clk 0:03:04.3]} 7... Nf6 {[%clk 0:02:56.6]} 8. Be2 {[%clk
0:03:01.6]} 8... O-O {[%clk 0:02:57]} 9. O-O {[%clk 0:03:02.2]} 9... Bd7 {[%clk
0:02:49.4]} 10. f4 {[%clk 0:02:50.4]} 10... Re8 {[%clk 0:02:33.9]} 11. Bf3
{[%clk 0:02:51.2]} 11... Nxd4 {[%clk 0:02:01.2]} 12. Bxd4 {[%clk 0:02:50.2]}
12... Bc6 {[%clk 0:02:01.6]} 13. Nd5 {[%clk 0:02:49.6]} 13... Bxd5 {[%clk
0:01:32.2]} 14. exd5 {[%clk 0:02:47.5]} 14... Qd7 {[%clk 0:00:59.9]} 15. Qd3
{[%clk 0:01:57.6]} 15... h5 {[%clk 0:00:57]} 16. h3 {[%clk 0:01:53.2]} 16... Re7
{[%clk 0:00:42.9]} 17. Rfe1 {[%clk 0:01:53.3]} 17... Rae8 {[%clk 0:00:43.3]} 18.
Kf1 {[%clk 0:01:49.1]} 18... Rxe1+ {[%clk 0:00:30.7]} 19. Rxe1 {[%clk 0:01:51]}
19... Rxe1+ {[%clk 0:00:30.6]} 20. Kxe1 {[%clk 0:01:52.7]} 20... Qe7+ {[%clk
0:00:29.9]} 21. Qe2 {[%clk 0:01:48.2]} 21... Qxe2+ {[%clk 0:00:26]} 22. Kxe2
{[%clk 0:01:50.1]} 22... Nd7 {[%clk 0:00:24.6]} 23. Kd3 {[%clk 0:01:38.6]} 23...
Nc5+ {[%clk 0:00:23.1]} 24. Bxc5 {[%clk 0:01:10.4]} 24... dxc5 {[%clk
0:00:23.6]} 25. b3 {[%clk 0:01:08.1]} 25... Kf8 {[%clk 0:00:22.5]} 26. f5 {[%clk
0:01:06.7]} 26... Ke7 {[%clk 0:00:22.1]} 27. fxg6 {[%clk 0:01:07.4]} 27... fxg6
{[%clk 0:00:22.8]} 28. Ke4 {[%clk 0:01:08.8]} 28... h4 {[%clk 0:00:20.8]} 29.
Kf4 {[%clk 0:00:56.5]} 29... Bf6 {[%clk 0:00:22]} 30. Be4 {[%clk 0:00:54.9]}
30... g5+ {[%clk 0:00:22.2]} 31. Kf5 {[%clk 0:00:55.7]} 31... b6 {[%clk
0:00:23.1]} 32. Bf3 {[%clk 0:00:50.4]} 32... Kf7 {[%clk 0:00:22.3]} 33. Bh5+
{[%clk 0:00:48.5]} 33... Kg7 {[%clk 0:00:21.3]} 34. Ke6 {[%clk 0:00:48.9]} 34...
Kh6 {[%clk 0:00:21.3]} 35. Bg4 {[%clk 0:00:48.6]} 35... Kg7 {[%clk 0:00:20.3]}
36. Kd7 {[%clk 0:00:49.6]} 36... Be5 {[%clk 0:00:21.3]} 37. Kc6 {[%clk
0:00:48.8]} 37... a5 {[%clk 0:00:21.5]} 38. Kd7 {[%clk 0:00:34.2]} 38... Kf6
{[%clk 0:00:22]} 39. Ke8 {[%clk 0:00:15.8]} 39... Bd6 {[%clk 0:00:21.4]} 40. Kd7
{[%clk 0:00:13.8]} 40... Ke5 {[%clk 0:00:22.2]} 41. a4 {[%clk 0:00:13.3]} 41...
Kf4 {[%clk 0:00:22.7]} 42. Bf3 {[%clk 0:00:10.2]} 42... Ke3 {[%clk 0:00:22.3]}
43. Ke6 {[%clk 0:00:11.4]} 43... Kd2 {[%clk 0:00:21.7]} 44. Kf5 {[%clk
0:00:09.2]} 44... Bf4 {[%clk 0:00:22.2]} 45. Be4 {[%clk 0:00:06.8]} 45... Kc3
{[%clk 0:00:22.6]} 46. Bf3 {[%clk 0:00:02.7]} 46... Kxb3 {[%clk 0:00:23.3]} 47.
Be2 {[%clk 0:00:04.6]} 47... Kxa4 {[%clk 0:00:23.9]} 48. Ke4 {[%clk 0:00:06.3]}
48... Kb4 {[%clk 0:00:24.9]} 49. Kd3 {[%clk 0:00:08.2]} 49... a4 {[%clk
0:00:26.1]} 50. Kc2 {[%clk 0:00:08.9]} 50... a3 {[%clk 0:00:27.1]} 51. Kb1
{[%clk 0:00:09.7]} 51... Kb3 {[%clk 0:00:28.1]} 52. Bd3 {[%clk 0:00:09.6]} 52...
a2+ {[%clk 0:00:28.7]} 0